{"text_format":"3","workbook":"xlsx","n_sheets":6,"sheets":["Andmelaud","Müük","Sissetulekud","Kulud","Maksud","Kategooriad"],"not_rendered":{"images":1,"defined_names":34},"read":"whole","date_system":"1900"}

{"sheet":"Andmelaud","index":0,"n_rows":20,"n_cols":8,"rows_kept":20,"merged":[[0,2,0,4],[0,6,3,7],[5,1,5,7]]}
[null,"Kasumiaruanne","Kuu või aasta [kuu või aasta] jaoks lõppkuupäevaga [kuu-päev-aasta]"]
[null,"Ettevõtte nimi","Tuhandelistena"]
[null,"Praegune brutomarginaal [L/J]",{"$f":"IFERROR(IF(Total_Gross_Profit=0,\"-\",Total_Gross_Profit/Total_Sales_Revenue),\"-\")","v":"-"}]
[null,"Praegune müügitulu [T/J]",{"$f":"IFERROR(IF(Net_Profit=0,\"-\",Net_Profit/Total_Sales_Revenue),\"-\")","v":"-"}]
[]
[null,"Ärge muutke selle töölehe kategooriad, sest see võib valemid rikkuda. Kasutage kategooriate lisamiseks kategooriate töölehte ja lisage kirjed vastavatele töölehtedele. Seda töövihikut värskendatakse automaatselt."]
[null,"Kokkuvõte","Eelmisel perioodil kokku","Eelarve kogusumma","Praegusel perioodil kokku\nAjavahemik","Praegune periood kokku müügiprotsendina","Muutuse protsent kokku võrreldes eelmise perioodiga","Eelarve erinevuse protsent kokku"]
[null,"Müügitulu kokku [J]",{"$f":"SUMIFS(Müügitulu[Eelmine periood],Müügitulu[Tulu tüüp],\"Müügitulu\")","v":0},{"$f":"SUMIFS(Müügitulu[Eelarve],Müügitulu[Tulu tüüp],\"Müügitulu\")","v":0},{"$f":"SUMIFS(Müügitulu[Praegune periood],Müügitulu[Tulu tüüp],\"Müügitulu\")","v":0},{"$f":"SUMIFS(Müügitulu[Praegune periood müügiprotsendina],Müügitulu[Tulu tüüp],\"Müügitulu\")","v":{"v":0,"d":"0.00%"}},{"$f":"SUMIFS(Müügitulu[Muutuse protsent võrreldes eelmise perioodiga],Müügitulu[Tulu tüüp],\"Müügitulu\")","v":{"v":0,"d":"0.00%"}},{"$f":"SUMIFS(Müügitulu[Eelarve erinevuse protsent],Müügitulu[Tulu tüüp],\"Müügitulu\")","v":{"v":0,"d":"0.00%"}}]
[null,"Müügikulu kokku [K]",{"$f":"SUMIFS(Müügitulu[Eelmine periood],Müügitulu[Tulu tüüp],\"Müügikulu\")","v":0},{"$f":"SUMIFS(Müügitulu[Eelarve],Müügitulu[Tulu tüüp],\"Müügikulu\")","v":0},{"$f":"SUMIFS(Müügitulu[Praegune periood],Müügitulu[Tulu tüüp],\"Müügikulu\")","v":0},{"$f":"SUMIFS(Müügitulu[Praegune periood müügiprotsendina],Müügitulu[Tulu tüüp],\"Müügikulu\")","v":{"v":0,"d":"0.00%"}},{"$f":"SUMIFS(Müügitulu[Muutuse protsent võrreldes eelmise perioodiga],Müügitulu[Tulu tüüp],\"Müügikulu\")","v":{"v":0,"d":"0.00%"}},{"$f":"SUMIFS(Müügitulu[Eelarve erinevuse protsent],Müügitulu[Tulu tüüp],\"Müügikulu\")","v":{"v":0,"d":"0.00%"}}]
[null,"Müügi- ja turunduskulud kokku [M]",{"$f":"SUMIFS(Tegevuskulud[Eelmine periood],Tegevuskulud[Kulu tüüp],\"Müük ja turundus\")","v":0},{"$f":"SUMIFS(Tegevuskulud[Eelarve],Tegevuskulud[Kulu tüüp],\"Müük ja turundus\")","v":0},{"$f":"SUMIFS(Tegevuskulud[Praegune periood],Tegevuskulud[Kulu tüüp],\"Müük ja turundus\")","v":0},{"$f":"SUMIFS(Tegevuskulud[Praegune periood müügiprotsendina],Tegevuskulud[Kulu tüüp],\"Müük ja turundus\")","v":{"v":0,"d":"0.00%"}},{"$f":"SUMIFS(Tegevuskulud[Muutuse protsent võrreldes eelmise perioodiga],Tegevuskulud[Kulu tüüp],\"Müük ja turundus\")","v":{"v":0,"d":"0.00%"}},{"$f":"SUMIFS(Tegevuskulud[Eelarve erinevuse protsent],Tegevuskulud[Kulu tüüp],\"Müük ja turundus\")","v":{"v":0,"d":"0.00%"}}]
[null,"Uuringu- ja arenduskulud kokku [N]",{"$f":"SUMIFS(Tegevuskulud[Eelmine periood],Tegevuskulud[Kulu tüüp],\"Uurimis- ja arendustegevus\")","v":0},{"$f":"SUMIFS(Tegevuskulud[Eelarve],Tegevuskulud[Kulu tüüp],\"Uurimis- ja arendustegevus\")","v":0},{"$f":"SUMIFS(Tegevuskulud[Praegune periood],Tegevuskulud[Kulu tüüp],\"Uurimis- ja arendustegevus\")","v":0},{"$f":"SUMIFS(Tegevuskulud[Praegune periood müügiprotsendina],Tegevuskulud[Kulu tüüp],\"Uurimis- ja arendustegevus\")","v":{"v":0,"d":"0.00%"}},{"$f":"SUMIFS(Tegevuskulud[Muutuse protsent võrreldes eelmise perioodiga],Tegevuskulud[Kulu tüüp],\"Uurimis- ja arendustegevus\")","v":{"v":0,"d":"0.00%"}},{"$f":"SUMIFS(Tegevuskulud[Eelarve erinevuse protsent],Tegevuskulud[Kulu tüüp],\"Uurimis- ja arendustegevus\")","v":{"v":0,"d":"0.00%"}}]
[null,"Üld- ja halduskulud kokku [O]",{"$f":"SUMIFS(Tegevuskulud[Eelmine periood],Tegevuskulud[Kulu tüüp],\"General and Adminstrative\")","v":0},{"$f":"SUMIFS(Tegevuskulud[Eelarve],Tegevuskulud[Kulu tüüp],\"General and Adminstrative\")","v":0},{"$f":"SUMIFS(Tegevuskulud[Praegune periood],Tegevuskulud[Kulu tüüp],\"General and Adminstrative\")","v":0},{"$f":"SUMIFS(Tegevuskulud[Praegune periood müügiprotsendina],Tegevuskulud[Kulu tüüp],\"General and Adminstrative\")","v":{"v":0,"d":"0.00%"}},{"$f":"SUMIFS(Tegevuskulud[Muutuse protsent võrreldes eelmise perioodiga],Tegevuskulud[Kulu tüüp],\"General and Adminstrative\")","v":{"v":0,"d":"0.00%"}},{"$f":"SUMIFS(Tegevuskulud[Eelarve erinevuse protsent],Tegevuskulud[Kulu tüüp],\"General and Adminstrative\")","v":{"v":0,"d":"0.00%"}}]
[null,"Muud tegevuskulud kokku [P]",{"$f":"Tegevuskulud[[#Totals],[Eelmine periood]]-SUM(C10:C12)","v":0},{"$f":"Tegevuskulud[[#Totals],[Eelarve]]-SUM(D10:D12)","v":0},{"$f":"Tegevuskulud[[#Totals],[Praegune periood]]-SUM(E10:E12)","v":0},{"$f":"Tegevuskulud[[#Totals],[Praegune periood müügiprotsendina]]-SUM(F10:F12)","v":{"v":0,"d":"0.00%"}},{"$f":"Tegevuskulud[[#Totals],[Muutuse protsent võrreldes eelmise perioodiga]]-SUM(G10:G12)","v":{"v":0,"d":"0.00%"}},{"$f":"Tegevuskulud[[#Totals],[Eelarve erinevuse protsent]]-SUM(H10:H12)","v":{"v":0,"d":"0.00%"}}]
[null,"Muu sissetulek [S]",{"$f":"Sissetulek[[#Totals],[Eelmine periood]]","v":0},{"$f":"Sissetulek[[#Totals],[Eelarve]]","v":0},{"$f":"Sissetulek[[#Totals],[Praegune periood]]","v":0},{"$f":"Sissetulek[[#Totals],[Praegune periood müügiprotsendina]]","v":{"v":0,"d":"0.00%"}},{"$f":"Sissetulek[[#Totals],[Muutuse protsent võrreldes eelmise perioodiga]]","v":{"v":0,"d":"0.00%"}},{"$f":"Sissetulek[[#Totals],[Eelarve erinevuse protsent]]","v":{"v":0,"d":"0.00%"}}]
[null,"Maksud kokku [T]",{"$f":"Maksud[[#Totals],[Eelmine periood]]","v":0},{"$f":"Maksud[[#Totals],[Eelarve]]","v":0},{"$f":"Maksud[[#Totals],[Praegune periood]]","v":0},{"$f":"Maksud[[#Totals],[Praegune periood müügiprotsendina]]","v":{"v":0,"d":"0.00%"}},{"$f":"Maksud[[#Totals],[Muutuse protsent võrreldes eelmise perioodiga]]","v":{"v":0,"d":"0.00%"}},{"$f":"Maksud[[#Totals],[Eelarve erinevuse protsent]]","v":{"v":0,"d":"0.00%"}}]
[]
[null,"Brutokasum [L=J-K]",{"$f":"IFERROR(C8-C9,\"-\")","v":0},{"$f":"IFERROR(D8-D9,\"-\")","v":0},{"$f":"IFERROR(Total_Sales_Revenue-Total_Cost_Sales,\"-\")","v":0},{"$f":"IFERROR(IF(Total_Sales_Revenue=0,\"0.00%\",Total_Gross_Profit/Total_Sales_Revenue),\"-\")","v":"0.00%"},{"$f":"IFERROR(IF(C17=Total_Gross_Profit,0,IF(Total_Gross_Profit>C17,ABS((Total_Gross_Profit/C17)-1),IF(AND(Total_Gross_Profit<C17,C17<0),-((Total_Gross_Profit/C17)-1),(Total_Gross_Profit/C17)-1))),\"-\")","v":{"v":0,"d":"0.00%"}},{"$f":"IFERROR(IF(D17=Total_Gross_Profit,0,IF(Total_Gross_Profit>D17,ABS((Total_Gross_Profit/D17)-1),IF(AND(Total_Gross_Profit<D17,D17<0),-((Total_Gross_Profit/D17)-1),(Total_Gross_Profit/D17)-1))),\"-\")","v":{"v":0,"d":"0.00%"}}]
[null,"Tegevuskulud kokku [Q=M+N+O+P]",{"$f":"IFERROR(C10+C11+C12+C13,\"-\")","v":0},{"$f":"IFERROR(D10+D11+D12+D13,\"-\")","v":0},{"$f":"IFERROR(Total_Sales_and_Marketing+Total_Research_and_Development+Total_General_and_Administrative+Total_Other_Expenses,\"-\")","v":0},{"$f":"IFERROR(IF(Total_Sales_Revenue=0,\"0.00%\",Total_Operating_Expenses/Total_Sales_Revenue),\"-\")","v":"0.00%"},{"$f":"IFERROR(IF(C18=Total_Operating_Expenses,0,IF(Total_Operating_Expenses>C18,ABS((Total_Operating_Expenses/C18)-1),IF(AND(Total_Operating_Expenses<C18,C18<0),-((Total_Operating_Expenses/C18)-1),(Total_Operating_Expenses/C18)-1))),\"-\")","v":{"v":0,"d":"0.00%"}},{"$f":"IFERROR(IF(D18=Total_Operating_Expenses,0,IF(Total_Operating_Expenses>D18,ABS((Total_Operating_Expenses/D18)-1),IF(AND(Total_Operating_Expenses<D18,D18<0),-((Total_Operating_Expenses/D18)-1),(Total_Operating_Expenses/D18)-1))),\"-\")","v":{"v":0,"d":"0.00%"}}]
[null,"Tegevustulu [R=L-Q]",{"$f":"IFERROR(C17-C18,\"-\")","v":0},{"$f":"IFERROR(D17-D18,\"-\")","v":0},{"$f":"IFERROR(Total_Gross_Profit-Total_Operating_Expenses,\"-\")","v":0},{"$f":"IFERROR(IF(Total_Sales_Revenue=0,\"0.00%\",Total_Income_Operations/Total_Sales_Revenue),\"-\")","v":"0.00%"},{"$f":"IFERROR(IF(C19=Total_Income_Operations,0,IF(Total_Income_Operations>C19,ABS((Total_Income_Operations/C19)-1),IF(AND(Total_Income_Operations<C19,C19<0),-((Total_Income_Operations/C19)-1),(Total_Income_Operations/C19)-1))),\"-\")","v":{"v":0,"d":"0.00%"}},{"$f":"IFERROR(IF(D19=Total_Income_Operations,0,IF(Total_Income_Operations>D19,ABS((Total_Income_Operations/D19)-1),IF(AND(Total_Income_Operations<D19,D19<0),-((Total_Income_Operations/D19)-1),(Total_Income_Operations/D19)-1))),\"-\")","v":{"v":0,"d":"0.00%"}}]
[null,"Netokasum [U=R+S-T]",{"$f":"IFERROR(C19+C14-C15,\"-\")","v":0},{"$f":"IFERROR(D19+D14-D15,\"-\")","v":0},{"$f":"Total_Income_Operations+Total_Other_Income-Total_Taxes","v":0},{"$f":"IFERROR(IF(Total_Sales_Revenue=0,\"0.00%\",Net_Profit/Total_Sales_Revenue),\"-\")","v":"0.00%"},{"$f":"IFERROR(IF(C20=Net_Profit,0,IF(Net_Profit>C20,ABS((Net_Profit/C20)-1),IF(AND(Net_Profit<C20,C20<0),-((Net_Profit/C20)-1),(Net_Profit/C20)-1))),\"-\")","v":{"v":0,"d":"0.00%"}},{"$f":"IFERROR(IF(D20=Net_Profit,0,IF(Net_Profit>D20,ABS((Net_Profit/D20)-1),IF(AND(Net_Profit<D20,D20<0),-((Net_Profit/D20)-1),(Net_Profit/D20)-1))),\"-\")","v":{"v":0,"d":"0.00%"}}]

{"sheet":"Müük","index":1,"n_rows":13,"n_cols":9,"rows_kept":13,"merged":[[0,7,2,8]]}
[null,{"$f":"Töövihiku_pealkiri","v":"Kasumiaruanne"}]
[null,{"$f":"Company_Name","v":"Ettevõtte nimi"},"Tuhandelistena"]
[null,"Müügitulu",{"$f":"IFERROR(Sales_Revenue,\"-\")","v":0}]
[null,"Tulu tüüp","Kirjeldus","Eelmine periood","Eelarve","Praegune periood","Praegune periood müügiprotsendina","Muutuse protsent võrreldes eelmise perioodiga","Eelarve erinevuse protsent"]
[null,"Müügitulu","Toode/teenus 1",{"$nulls":3},{"$f":"IFERROR(IF(Müügitulu[[#Totals],[Praegune periood]]=0,\"-\",Müügitulu[[#This Row],[Praegune periood]]/Sales_Revenue),\"-\")","v":"-"},{"$f":"IFERROR(IF(Müügitulu[[#This Row],[Eelmine periood]]=Müügitulu[[#This Row],[Praegune periood]],0,IF(Müügitulu[[#This Row],[Praegune periood]]>Müügitulu[[#This Row],[Eelmine periood]],ABS((Müügitulu[[#This Row],[Praegune periood]]/Müügitulu[[#This Row],[Eelmine periood]])-1),IF(AND(Müügitulu[[#This Row],[Praegune periood]]<Müügitulu[[#This Row],[Eelmine periood]],Müügitulu[[#This Row],[Eelmine periood]]<0),-((Müügitulu[[#This Row],[Praegune periood]]/Müügitulu[[#This Row],[Eelmine periood]])-1),(Müügitulu[[#This Row],[Praegune periood]]/Müügitulu[[#This Row],[Eelmine periood]])-1))),\"-\")","v":{"v":0,"d":"0.00%"}},{"$f":"IFERROR(IF(Müügitulu[[#This Row],[Eelarve]]=Müügitulu[[#This Row],[Praegune periood]],0,IF(Müügitulu[[#This Row],[Praegune periood]]>Müügitulu[[#This Row],[Eelarve]],ABS((Müügitulu[[#This Row],[Praegune periood]]/Müügitulu[[#This Row],[Eelarve]])-1),IF(AND(Müügitulu[[#This Row],[Praegune periood]]<Müügitulu[[#This Row],[Eelarve]],Müügitulu[[#This Row],[Eelarve]]<0),-((Müügitulu[[#This Row],[Praegune periood]]/Müügitulu[[#This Row],[Eelarve]])-1),(Müügitulu[[#This Row],[Praegune periood]]/Müügitulu[[#This Row],[Eelarve]])-1))),\"-\")","v":{"v":0,"d":"0.00%"}}]
[null,"Müügitulu","Toode/teenus 2",{"$nulls":3},{"$f":"IFERROR(IF(Müügitulu[[#Totals],[Praegune periood]]=0,\"-\",Müügitulu[[#This Row],[Praegune periood]]/Sales_Revenue),\"-\")","v":"-"},{"$f":"IFERROR(IF(Müügitulu[[#This Row],[Eelmine periood]]=Müügitulu[[#This Row],[Praegune periood]],0,IF(Müügitulu[[#This Row],[Praegune periood]]>Müügitulu[[#This Row],[Eelmine periood]],ABS((Müügitulu[[#This Row],[Praegune periood]]/Müügitulu[[#This Row],[Eelmine periood]])-1),IF(AND(Müügitulu[[#This Row],[Praegune periood]]<Müügitulu[[#This Row],[Eelmine periood]],Müügitulu[[#This Row],[Eelmine periood]]<0),-((Müügitulu[[#This Row],[Praegune periood]]/Müügitulu[[#This Row],[Eelmine periood]])-1),(Müügitulu[[#This Row],[Praegune periood]]/Müügitulu[[#This Row],[Eelmine periood]])-1))),\"-\")","v":{"v":0,"d":"0.00%"}},{"$f":"IFERROR(IF(Müügitulu[[#This Row],[Eelarve]]=Müügitulu[[#This Row],[Praegune periood]],0,IF(Müügitulu[[#This Row],[Praegune periood]]>Müügitulu[[#This Row],[Eelarve]],ABS((Müügitulu[[#This Row],[Praegune periood]]/Müügitulu[[#This Row],[Eelarve]])-1),IF(AND(Müügitulu[[#This Row],[Praegune periood]]<Müügitulu[[#This Row],[Eelarve]],Müügitulu[[#This Row],[Eelarve]]<0),-((Müügitulu[[#This Row],[Praegune periood]]/Müügitulu[[#This Row],[Eelarve]])-1),(Müügitulu[[#This Row],[Praegune periood]]/Müügitulu[[#This Row],[Eelarve]])-1))),\"-\")","v":{"v":0,"d":"0.00%"}}]
[null,"Müügitulu","Toode/teenus 3",{"$nulls":3},{"$f":"IFERROR(IF(Müügitulu[[#Totals],[Praegune periood]]=0,\"-\",Müügitulu[[#This Row],[Praegune periood]]/Sales_Revenue),\"-\")","v":"-"},{"$f":"IFERROR(IF(Müügitulu[[#This Row],[Eelmine periood]]=Müügitulu[[#This Row],[Praegune periood]],0,IF(Müügitulu[[#This Row],[Praegune periood]]>Müügitulu[[#This Row],[Eelmine periood]],ABS((Müügitulu[[#This Row],[Praegune periood]]/Müügitulu[[#This Row],[Eelmine periood]])-1),IF(AND(Müügitulu[[#This Row],[Praegune periood]]<Müügitulu[[#This Row],[Eelmine periood]],Müügitulu[[#This Row],[Eelmine periood]]<0),-((Müügitulu[[#This Row],[Praegune periood]]/Müügitulu[[#This Row],[Eelmine periood]])-1),(Müügitulu[[#This Row],[Praegune periood]]/Müügitulu[[#This Row],[Eelmine periood]])-1))),\"-\")","v":{"v":0,"d":"0.00%"}},{"$f":"IFERROR(IF(Müügitulu[[#This Row],[Eelarve]]=Müügitulu[[#This Row],[Praegune periood]],0,IF(Müügitulu[[#This Row],[Praegune periood]]>Müügitulu[[#This Row],[Eelarve]],ABS((Müügitulu[[#This Row],[Praegune periood]]/Müügitulu[[#This Row],[Eelarve]])-1),IF(AND(Müügitulu[[#This Row],[Praegune periood]]<Müügitulu[[#This Row],[Eelarve]],Müügitulu[[#This Row],[Eelarve]]<0),-((Müügitulu[[#This Row],[Praegune periood]]/Müügitulu[[#This Row],[Eelarve]])-1),(Müügitulu[[#This Row],[Praegune periood]]/Müügitulu[[#This Row],[Eelarve]])-1))),\"-\")","v":{"v":0,"d":"0.00%"}}]
[null,"Müügitulu","Toode/teenus 4",{"$nulls":3},{"$f":"IFERROR(IF(Müügitulu[[#Totals],[Praegune periood]]=0,\"-\",Müügitulu[[#This Row],[Praegune periood]]/Sales_Revenue),\"-\")","v":"-"},{"$f":"IFERROR(IF(Müügitulu[[#This Row],[Eelmine periood]]=Müügitulu[[#This Row],[Praegune periood]],0,IF(Müügitulu[[#This Row],[Praegune periood]]>Müügitulu[[#This Row],[Eelmine periood]],ABS((Müügitulu[[#This Row],[Praegune periood]]/Müügitulu[[#This Row],[Eelmine periood]])-1),IF(AND(Müügitulu[[#This Row],[Praegune periood]]<Müügitulu[[#This Row],[Eelmine periood]],Müügitulu[[#This Row],[Eelmine periood]]<0),-((Müügitulu[[#This Row],[Praegune periood]]/Müügitulu[[#This Row],[Eelmine periood]])-1),(Müügitulu[[#This Row],[Praegune periood]]/Müügitulu[[#This Row],[Eelmine periood]])-1))),\"-\")","v":{"v":0,"d":"0.00%"}},{"$f":"IFERROR(IF(Müügitulu[[#This Row],[Eelarve]]=Müügitulu[[#This Row],[Praegune periood]],0,IF(Müügitulu[[#This Row],[Praegune periood]]>Müügitulu[[#This Row],[Eelarve]],ABS((Müügitulu[[#This Row],[Praegune periood]]/Müügitulu[[#This Row],[Eelarve]])-1),IF(AND(Müügitulu[[#This Row],[Praegune periood]]<Müügitulu[[#This Row],[Eelarve]],Müügitulu[[#This Row],[Eelarve]]<0),-((Müügitulu[[#This Row],[Praegune periood]]/Müügitulu[[#This Row],[Eelarve]])-1),(Müügitulu[[#This Row],[Praegune periood]]/Müügitulu[[#This Row],[Eelarve]])-1))),\"-\")","v":{"v":0,"d":"0.00%"}}]
[null,"Müügikulu","Toode/teenus 1",{"$nulls":3},{"$f":"IFERROR(IF(Müügitulu[[#Totals],[Praegune periood]]=0,\"-\",Müügitulu[[#This Row],[Praegune periood]]/Sales_Revenue),\"-\")","v":"-"},{"$f":"IFERROR(IF(Müügitulu[[#This Row],[Eelmine periood]]=Müügitulu[[#This Row],[Praegune periood]],0,IF(Müügitulu[[#This Row],[Praegune periood]]>Müügitulu[[#This Row],[Eelmine periood]],ABS((Müügitulu[[#This Row],[Praegune periood]]/Müügitulu[[#This Row],[Eelmine periood]])-1),IF(AND(Müügitulu[[#This Row],[Praegune periood]]<Müügitulu[[#This Row],[Eelmine periood]],Müügitulu[[#This Row],[Eelmine periood]]<0),-((Müügitulu[[#This Row],[Praegune periood]]/Müügitulu[[#This Row],[Eelmine periood]])-1),(Müügitulu[[#This Row],[Praegune periood]]/Müügitulu[[#This Row],[Eelmine periood]])-1))),\"-\")","v":{"v":0,"d":"0.00%"}},{"$f":"IFERROR(IF(Müügitulu[[#This Row],[Eelarve]]=Müügitulu[[#This Row],[Praegune periood]],0,IF(Müügitulu[[#This Row],[Praegune periood]]>Müügitulu[[#This Row],[Eelarve]],ABS((Müügitulu[[#This Row],[Praegune periood]]/Müügitulu[[#This Row],[Eelarve]])-1),IF(AND(Müügitulu[[#This Row],[Praegune periood]]<Müügitulu[[#This Row],[Eelarve]],Müügitulu[[#This Row],[Eelarve]]<0),-((Müügitulu[[#This Row],[Praegune periood]]/Müügitulu[[#This Row],[Eelarve]])-1),(Müügitulu[[#This Row],[Praegune periood]]/Müügitulu[[#This Row],[Eelarve]])-1))),\"-\")","v":{"v":0,"d":"0.00%"}}]
[null,"Müügikulu","Toode/teenus 2",{"$nulls":3},{"$f":"IFERROR(IF(Müügitulu[[#Totals],[Praegune periood]]=0,\"-\",Müügitulu[[#This Row],[Praegune periood]]/Sales_Revenue),\"-\")","v":"-"},{"$f":"IFERROR(IF(Müügitulu[[#This Row],[Eelmine periood]]=Müügitulu[[#This Row],[Praegune periood]],0,IF(Müügitulu[[#This Row],[Praegune periood]]>Müügitulu[[#This Row],[Eelmine periood]],ABS((Müügitulu[[#This Row],[Praegune periood]]/Müügitulu[[#This Row],[Eelmine periood]])-1),IF(AND(Müügitulu[[#This Row],[Praegune periood]]<Müügitulu[[#This Row],[Eelmine periood]],Müügitulu[[#This Row],[Eelmine periood]]<0),-((Müügitulu[[#This Row],[Praegune periood]]/Müügitulu[[#This Row],[Eelmine periood]])-1),(Müügitulu[[#This Row],[Praegune periood]]/Müügitulu[[#This Row],[Eelmine periood]])-1))),\"-\")","v":{"v":0,"d":"0.00%"}},{"$f":"IFERROR(IF(Müügitulu[[#This Row],[Eelarve]]=Müügitulu[[#This Row],[Praegune periood]],0,IF(Müügitulu[[#This Row],[Praegune periood]]>Müügitulu[[#This Row],[Eelarve]],ABS((Müügitulu[[#This Row],[Praegune periood]]/Müügitulu[[#This Row],[Eelarve]])-1),IF(AND(Müügitulu[[#This Row],[Praegune periood]]<Müügitulu[[#This Row],[Eelarve]],Müügitulu[[#This Row],[Eelarve]]<0),-((Müügitulu[[#This Row],[Praegune periood]]/Müügitulu[[#This Row],[Eelarve]])-1),(Müügitulu[[#This Row],[Praegune periood]]/Müügitulu[[#This Row],[Eelarve]])-1))),\"-\")","v":{"v":0,"d":"0.00%"}}]
[null,"Müügikulu","Toode/teenus 3",{"$nulls":3},{"$f":"IFERROR(IF(Müügitulu[[#Totals],[Praegune periood]]=0,\"-\",Müügitulu[[#This Row],[Praegune periood]]/Sales_Revenue),\"-\")","v":"-"},{"$f":"IFERROR(IF(Müügitulu[[#This Row],[Eelmine periood]]=Müügitulu[[#This Row],[Praegune periood]],0,IF(Müügitulu[[#This Row],[Praegune periood]]>Müügitulu[[#This Row],[Eelmine periood]],ABS((Müügitulu[[#This Row],[Praegune periood]]/Müügitulu[[#This Row],[Eelmine periood]])-1),IF(AND(Müügitulu[[#This Row],[Praegune periood]]<Müügitulu[[#This Row],[Eelmine periood]],Müügitulu[[#This Row],[Eelmine periood]]<0),-((Müügitulu[[#This Row],[Praegune periood]]/Müügitulu[[#This Row],[Eelmine periood]])-1),(Müügitulu[[#This Row],[Praegune periood]]/Müügitulu[[#This Row],[Eelmine periood]])-1))),\"-\")","v":{"v":0,"d":"0.00%"}},{"$f":"IFERROR(IF(Müügitulu[[#This Row],[Eelarve]]=Müügitulu[[#This Row],[Praegune periood]],0,IF(Müügitulu[[#This Row],[Praegune periood]]>Müügitulu[[#This Row],[Eelarve]],ABS((Müügitulu[[#This Row],[Praegune periood]]/Müügitulu[[#This Row],[Eelarve]])-1),IF(AND(Müügitulu[[#This Row],[Praegune periood]]<Müügitulu[[#This Row],[Eelarve]],Müügitulu[[#This Row],[Eelarve]]<0),-((Müügitulu[[#This Row],[Praegune periood]]/Müügitulu[[#This Row],[Eelarve]])-1),(Müügitulu[[#This Row],[Praegune periood]]/Müügitulu[[#This Row],[Eelarve]])-1))),\"-\")","v":{"v":0,"d":"0.00%"}}]
[null,"Müügikulu","Toode/teenus 4",{"$nulls":3},{"$f":"IFERROR(IF(Müügitulu[[#Totals],[Praegune periood]]=0,\"-\",Müügitulu[[#This Row],[Praegune periood]]/Sales_Revenue),\"-\")","v":"-"},{"$f":"IFERROR(IF(Müügitulu[[#This Row],[Eelmine periood]]=Müügitulu[[#This Row],[Praegune periood]],0,IF(Müügitulu[[#This Row],[Praegune periood]]>Müügitulu[[#This Row],[Eelmine periood]],ABS((Müügitulu[[#This Row],[Praegune periood]]/Müügitulu[[#This Row],[Eelmine periood]])-1),IF(AND(Müügitulu[[#This Row],[Praegune periood]]<Müügitulu[[#This Row],[Eelmine periood]],Müügitulu[[#This Row],[Eelmine periood]]<0),-((Müügitulu[[#This Row],[Praegune periood]]/Müügitulu[[#This Row],[Eelmine periood]])-1),(Müügitulu[[#This Row],[Praegune periood]]/Müügitulu[[#This Row],[Eelmine periood]])-1))),\"-\")","v":{"v":0,"d":"0.00%"}},{"$f":"IFERROR(IF(Müügitulu[[#This Row],[Eelarve]]=Müügitulu[[#This Row],[Praegune periood]],0,IF(Müügitulu[[#This Row],[Praegune periood]]>Müügitulu[[#This Row],[Eelarve]],ABS((Müügitulu[[#This Row],[Praegune periood]]/Müügitulu[[#This Row],[Eelarve]])-1),IF(AND(Müügitulu[[#This Row],[Praegune periood]]<Müügitulu[[#This Row],[Eelarve]],Müügitulu[[#This Row],[Eelarve]]<0),-((Müügitulu[[#This Row],[Praegune periood]]/Müügitulu[[#This Row],[Eelarve]])-1),(Müügitulu[[#This Row],[Praegune periood]]/Müügitulu[[#This Row],[Eelarve]])-1))),\"-\")","v":{"v":0,"d":"0.00%"}}]
[null,"Müügitulu kokku",null,{"$f":"SUBTOTAL(109,Müügitulu[Eelmine periood])","v":0},{"$f":"SUBTOTAL(109,Müügitulu[Eelarve])","v":0},{"$f":"SUBTOTAL(109,Müügitulu[Praegune periood])","v":0},{"$f":"SUBTOTAL(109,Müügitulu[Praegune periood müügiprotsendina])","v":{"v":0,"d":"0.00%"}},{"$f":"SUBTOTAL(109,Müügitulu[Muutuse protsent võrreldes eelmise perioodiga])","v":{"v":0,"d":"0.00%"}},{"$f":"SUBTOTAL(109,Müügitulu[Eelarve erinevuse protsent])","v":{"v":0,"d":"0.00%"}}]

{"sheet":"Sissetulekud","index":2,"n_rows":7,"n_cols":9,"rows_kept":7,"merged":[[0,7,2,8]]}
[null,{"$f":"Töövihiku_pealkiri","v":"Kasumiaruanne"}]
[null,{"$f":"Company_Name","v":"Ettevõtte nimi"},"Tuhandelistena"]
[null,"Sissetulekud",{"$f":"IFERROR(Sissetulek[[#Totals],[Praegune periood]],\"-\")","v":0}]
[null,"Sissetuleku tüüp","Kirjeldus","Eelmine periood","Eelarve","Praegune periood","Praegune periood müügiprotsendina","Muutuse protsent võrreldes eelmise perioodiga","Eelarve erinevuse protsent"]
[null,"Sissetulekud","Muu sissetulek",{"$nulls":3},{"$f":"IFERROR(IF(Sales_Revenue=0,\"-\",Sissetulek[[#This Row],[Praegune periood]]/Sales_Revenue),\"-\")","v":"-"},{"$f":"IFERROR(IF(Sissetulek[[#This Row],[Eelmine periood]]=Sissetulek[[#This Row],[Praegune periood]],0,IF(Sissetulek[[#This Row],[Praegune periood]]>Sissetulek[[#This Row],[Eelmine periood]],ABS((Sissetulek[[#This Row],[Praegune periood]]/Sissetulek[[#This Row],[Eelmine periood]])-1),IF(AND(Sissetulek[[#This Row],[Praegune periood]]<Sissetulek[[#This Row],[Eelmine periood]],Sissetulek[[#This Row],[Eelmine periood]]<0),-((Sissetulek[[#This Row],[Praegune periood]]/Sissetulek[[#This Row],[Eelmine periood]])-1),(Sissetulek[[#This Row],[Praegune periood]]/Sissetulek[[#This Row],[Eelmine periood]])-1))),\"-\")","v":{"v":0,"d":"0.00%"}},{"$f":"IFERROR(IF(Sissetulek[[#This Row],[Eelarve]]=Sissetulek[[#This Row],[Praegune periood]],0,IF(Sissetulek[[#This Row],[Praegune periood]]>Sissetulek[[#This Row],[Eelarve]],ABS((Sissetulek[[#This Row],[Praegune periood]]/Sissetulek[[#This Row],[Eelarve]])-1),IF(AND(Sissetulek[[#This Row],[Praegune periood]]<Sissetulek[[#This Row],[Eelarve]],Sissetulek[[#This Row],[Eelarve]]<0),-((Sissetulek[[#This Row],[Praegune periood]]/Sissetulek[[#This Row],[Eelarve]])-1),(Sissetulek[[#This Row],[Praegune periood]]/Sissetulek[[#This Row],[Eelarve]])-1))),\"-\")","v":{"v":0,"d":"0.00%"}}]
[{"$nulls":6},{"$f":"IFERROR(IF(Sales_Revenue=0,\"-\",Sissetulek[[#This Row],[Praegune periood]]/Sales_Revenue),\"-\")","v":"-"},{"$f":"IFERROR(IF(Sissetulek[[#This Row],[Eelmine periood]]=Sissetulek[[#This Row],[Praegune periood]],0,IF(Sissetulek[[#This Row],[Praegune periood]]>Sissetulek[[#This Row],[Eelmine periood]],ABS((Sissetulek[[#This Row],[Praegune periood]]/Sissetulek[[#This Row],[Eelmine periood]])-1),IF(AND(Sissetulek[[#This Row],[Praegune periood]]<Sissetulek[[#This Row],[Eelmine periood]],Sissetulek[[#This Row],[Eelmine periood]]<0),-((Sissetulek[[#This Row],[Praegune periood]]/Sissetulek[[#This Row],[Eelmine periood]])-1),(Sissetulek[[#This Row],[Praegune periood]]/Sissetulek[[#This Row],[Eelmine periood]])-1))),\"-\")","v":{"v":0,"d":"0.00%"}},{"$f":"IFERROR(IF(Sissetulek[[#This Row],[Eelarve]]=Sissetulek[[#This Row],[Praegune periood]],0,IF(Sissetulek[[#This Row],[Praegune periood]]>Sissetulek[[#This Row],[Eelarve]],ABS((Sissetulek[[#This Row],[Praegune periood]]/Sissetulek[[#This Row],[Eelarve]])-1),IF(AND(Sissetulek[[#This Row],[Praegune periood]]<Sissetulek[[#This Row],[Eelarve]],Sissetulek[[#This Row],[Eelarve]]<0),-((Sissetulek[[#This Row],[Praegune periood]]/Sissetulek[[#This Row],[Eelarve]])-1),(Sissetulek[[#This Row],[Praegune periood]]/Sissetulek[[#This Row],[Eelarve]])-1))),\"-\")","v":{"v":0,"d":"0.00%"}}]
[null,"Müügisissetulekud kokku",null,{"$f":"SUBTOTAL(109,Sissetulek[Eelmine periood])","v":0},{"$f":"SUBTOTAL(109,Sissetulek[Eelarve])","v":0},{"$f":"SUBTOTAL(109,Sissetulek[Praegune periood])","v":0},{"$f":"SUBTOTAL(109,Sissetulek[Praegune periood müügiprotsendina])","v":{"v":0,"d":"0.00%"}},{"$f":"SUBTOTAL(109,Sissetulek[Muutuse protsent võrreldes eelmise perioodiga])","v":{"v":0,"d":"0.00%"}},{"$f":"SUBTOTAL(109,Sissetulek[Eelarve erinevuse protsent])","v":{"v":0,"d":"0.00%"}}]

{"sheet":"Kulud","index":3,"n_rows":25,"n_cols":9,"rows_kept":25,"merged":[[0,7,2,8]]}
[null,{"$f":"Töövihiku_pealkiri","v":"Kasumiaruanne"}]
[null,{"$f":"Company_Name","v":"Ettevõtte nimi"},"Tuhandelistena"]
[null,"Tegevuskulud",{"$f":"IFERROR(Tegevuskulud[[#Totals],[Praegune periood]],\"-\")","v":0}]
[null,"Kulu tüüp","Kirjeldus","Eelmine periood","Eelarve","Praegune periood","Praegune periood müügiprotsendina","Muutuse protsent võrreldes eelmise perioodiga","Eelarve erinevuse protsent"]
[null,"Müük ja turundus","Reklaam",{"$nulls":3},{"$f":"IFERROR(IF(Sales_Revenue=0,\"-\",Tegevuskulud[[#This Row],[Praegune periood]]/Sales_Revenue),\"-\")","v":"-"},{"$f":"IFERROR(IF(Tegevuskulud[[#This Row],[Eelmine periood]]=Tegevuskulud[[#This Row],[Praegune periood]],0,IF(Tegevuskulud[[#This Row],[Praegune periood]]>Tegevuskulud[[#This Row],[Eelmine periood]],ABS((Tegevuskulud[[#This Row],[Praegune periood]]/Tegevuskulud[[#This Row],[Eelmine periood]])-1),IF(AND(Tegevuskulud[[#This Row],[Praegune periood]]<Tegevuskulud[[#This Row],[Eelmine periood]],Tegevuskulud[[#This Row],[Eelmine periood]]<0),-((Tegevuskulud[[#This Row],[Praegune periood]]/Tegevuskulud[[#This Row],[Eelmine periood]])-1),(Tegevuskulud[[#This Row],[Praegune periood]]/Tegevuskulud[[#This Row],[Eelmine periood]])-1))),\"-\")","v":{"v":0,"d":"0.00%"}},{"$f":"IFERROR(IF(Tegevuskulud[[#This Row],[Eelarve]]=Tegevuskulud[[#This Row],[Praegune periood]],0,IF(Tegevuskulud[[#This Row],[Praegune periood]]>Tegevuskulud[[#This Row],[Eelarve]],ABS((Tegevuskulud[[#This Row],[Praegune periood]]/Tegevuskulud[[#This Row],[Eelarve]])-1),IF(AND(Tegevuskulud[[#This Row],[Praegune periood]]<Tegevuskulud[[#This Row],[Eelarve]],Tegevuskulud[[#This Row],[Eelarve]]<0),-((Tegevuskulud[[#This Row],[Praegune periood]]/Tegevuskulud[[#This Row],[Eelarve]])-1),(Tegevuskulud[[#This Row],[Praegune periood]]/Tegevuskulud[[#This Row],[Eelarve]])-1))),\"-\")","v":{"v":0,"d":"0.00%"}}]
[null,"Müük ja turundus","Otseturundus",{"$nulls":3},{"$f":"IFERROR(IF(Sales_Revenue=0,\"-\",Tegevuskulud[[#This Row],[Praegune periood]]/Sales_Revenue),\"-\")","v":"-"},{"$f":"IFERROR(IF(Tegevuskulud[[#This Row],[Eelmine periood]]=Tegevuskulud[[#This Row],[Praegune periood]],0,IF(Tegevuskulud[[#This Row],[Praegune periood]]>Tegevuskulud[[#This Row],[Eelmine periood]],ABS((Tegevuskulud[[#This Row],[Praegune periood]]/Tegevuskulud[[#This Row],[Eelmine periood]])-1),IF(AND(Tegevuskulud[[#This Row],[Praegune periood]]<Tegevuskulud[[#This Row],[Eelmine periood]],Tegevuskulud[[#This Row],[Eelmine periood]]<0),-((Tegevuskulud[[#This Row],[Praegune periood]]/Tegevuskulud[[#This Row],[Eelmine periood]])-1),(Tegevuskulud[[#This Row],[Praegune periood]]/Tegevuskulud[[#This Row],[Eelmine periood]])-1))),\"-\")","v":{"v":0,"d":"0.00%"}},{"$f":"IFERROR(IF(Tegevuskulud[[#This Row],[Eelarve]]=Tegevuskulud[[#This Row],[Praegune periood]],0,IF(Tegevuskulud[[#This Row],[Praegune periood]]>Tegevuskulud[[#This Row],[Eelarve]],ABS((Tegevuskulud[[#This Row],[Praegune periood]]/Tegevuskulud[[#This Row],[Eelarve]])-1),IF(AND(Tegevuskulud[[#This Row],[Praegune periood]]<Tegevuskulud[[#This Row],[Eelarve]],Tegevuskulud[[#This Row],[Eelarve]]<0),-((Tegevuskulud[[#This Row],[Praegune periood]]/Tegevuskulud[[#This Row],[Eelarve]])-1),(Tegevuskulud[[#This Row],[Praegune periood]]/Tegevuskulud[[#This Row],[Eelarve]])-1))),\"-\")","v":{"v":0,"d":"0.00%"}}]
[null,"Müük ja turundus","Muud kulud (täpsustada)",{"$nulls":3},{"$f":"IFERROR(IF(Sales_Revenue=0,\"-\",Tegevuskulud[[#This Row],[Praegune periood]]/Sales_Revenue),\"-\")","v":"-"},{"$f":"IFERROR(IF(Tegevuskulud[[#This Row],[Eelmine periood]]=Tegevuskulud[[#This Row],[Praegune periood]],0,IF(Tegevuskulud[[#This Row],[Praegune periood]]>Tegevuskulud[[#This Row],[Eelmine periood]],ABS((Tegevuskulud[[#This Row],[Praegune periood]]/Tegevuskulud[[#This Row],[Eelmine periood]])-1),IF(AND(Tegevuskulud[[#This Row],[Praegune periood]]<Tegevuskulud[[#This Row],[Eelmine periood]],Tegevuskulud[[#This Row],[Eelmine periood]]<0),-((Tegevuskulud[[#This Row],[Praegune periood]]/Tegevuskulud[[#This Row],[Eelmine periood]])-1),(Tegevuskulud[[#This Row],[Praegune periood]]/Tegevuskulud[[#This Row],[Eelmine periood]])-1))),\"-\")","v":{"v":0,"d":"0.00%"}},{"$f":"IFERROR(IF(Tegevuskulud[[#This Row],[Eelarve]]=Tegevuskulud[[#This Row],[Praegune periood]],0,IF(Tegevuskulud[[#This Row],[Praegune periood]]>Tegevuskulud[[#This Row],[Eelarve]],ABS((Tegevuskulud[[#This Row],[Praegune periood]]/Tegevuskulud[[#This Row],[Eelarve]])-1),IF(AND(Tegevuskulud[[#This Row],[Praegune periood]]<Tegevuskulud[[#This Row],[Eelarve]],Tegevuskulud[[#This Row],[Eelarve]]<0),-((Tegevuskulud[[#This Row],[Praegune periood]]/Tegevuskulud[[#This Row],[Eelarve]])-1),(Tegevuskulud[[#This Row],[Praegune periood]]/Tegevuskulud[[#This Row],[Eelarve]])-1))),\"-\")","v":{"v":0,"d":"0.00%"}}]
[null,"Müük ja turundus","Muud kulud (täpsustada)",{"$nulls":3},{"$f":"IFERROR(IF(Sales_Revenue=0,\"-\",Tegevuskulud[[#This Row],[Praegune periood]]/Sales_Revenue),\"-\")","v":"-"},{"$f":"IFERROR(IF(Tegevuskulud[[#This Row],[Eelmine periood]]=Tegevuskulud[[#This Row],[Praegune periood]],0,IF(Tegevuskulud[[#This Row],[Praegune periood]]>Tegevuskulud[[#This Row],[Eelmine periood]],ABS((Tegevuskulud[[#This Row],[Praegune periood]]/Tegevuskulud[[#This Row],[Eelmine periood]])-1),IF(AND(Tegevuskulud[[#This Row],[Praegune periood]]<Tegevuskulud[[#This Row],[Eelmine periood]],Tegevuskulud[[#This Row],[Eelmine periood]]<0),-((Tegevuskulud[[#This Row],[Praegune periood]]/Tegevuskulud[[#This Row],[Eelmine periood]])-1),(Tegevuskulud[[#This Row],[Praegune periood]]/Tegevuskulud[[#This Row],[Eelmine periood]])-1))),\"-\")","v":{"v":0,"d":"0.00%"}},{"$f":"IFERROR(IF(Tegevuskulud[[#This Row],[Eelarve]]=Tegevuskulud[[#This Row],[Praegune periood]],0,IF(Tegevuskulud[[#This Row],[Praegune periood]]>Tegevuskulud[[#This Row],[Eelarve]],ABS((Tegevuskulud[[#This Row],[Praegune periood]]/Tegevuskulud[[#This Row],[Eelarve]])-1),IF(AND(Tegevuskulud[[#This Row],[Praegune periood]]<Tegevuskulud[[#This Row],[Eelarve]],Tegevuskulud[[#This Row],[Eelarve]]<0),-((Tegevuskulud[[#This Row],[Praegune periood]]/Tegevuskulud[[#This Row],[Eelarve]])-1),(Tegevuskulud[[#This Row],[Praegune periood]]/Tegevuskulud[[#This Row],[Eelarve]])-1))),\"-\")","v":{"v":0,"d":"0.00%"}}]
[null,"Uurimis- ja arendustegevus","Tehnoloogialitsentsid",{"$nulls":3},{"$f":"IFERROR(IF(Sales_Revenue=0,\"-\",Tegevuskulud[[#This Row],[Praegune periood]]/Sales_Revenue),\"-\")","v":"-"},{"$f":"IFERROR(IF(Tegevuskulud[[#This Row],[Eelmine periood]]=Tegevuskulud[[#This Row],[Praegune periood]],0,IF(Tegevuskulud[[#This Row],[Praegune periood]]>Tegevuskulud[[#This Row],[Eelmine periood]],ABS((Tegevuskulud[[#This Row],[Praegune periood]]/Tegevuskulud[[#This Row],[Eelmine periood]])-1),IF(AND(Tegevuskulud[[#This Row],[Praegune periood]]<Tegevuskulud[[#This Row],[Eelmine periood]],Tegevuskulud[[#This Row],[Eelmine periood]]<0),-((Tegevuskulud[[#This Row],[Praegune periood]]/Tegevuskulud[[#This Row],[Eelmine periood]])-1),(Tegevuskulud[[#This Row],[Praegune periood]]/Tegevuskulud[[#This Row],[Eelmine periood]])-1))),\"-\")","v":{"v":0,"d":"0.00%"}},{"$f":"IFERROR(IF(Tegevuskulud[[#This Row],[Eelarve]]=Tegevuskulud[[#This Row],[Praegune periood]],0,IF(Tegevuskulud[[#This Row],[Praegune periood]]>Tegevuskulud[[#This Row],[Eelarve]],ABS((Tegevuskulud[[#This Row],[Praegune periood]]/Tegevuskulud[[#This Row],[Eelarve]])-1),IF(AND(Tegevuskulud[[#This Row],[Praegune periood]]<Tegevuskulud[[#This Row],[Eelarve]],Tegevuskulud[[#This Row],[Eelarve]]<0),-((Tegevuskulud[[#This Row],[Praegune periood]]/Tegevuskulud[[#This Row],[Eelarve]])-1),(Tegevuskulud[[#This Row],[Praegune periood]]/Tegevuskulud[[#This Row],[Eelarve]])-1))),\"-\")","v":{"v":0,"d":"0.00%"}}]
[null,"Uurimis- ja arendustegevus","Patendid ",{"$nulls":3},{"$f":"IFERROR(IF(Sales_Revenue=0,\"-\",Tegevuskulud[[#This Row],[Praegune periood]]/Sales_Revenue),\"-\")","v":"-"},{"$f":"IFERROR(IF(Tegevuskulud[[#This Row],[Eelmine periood]]=Tegevuskulud[[#This Row],[Praegune periood]],0,IF(Tegevuskulud[[#This Row],[Praegune periood]]>Tegevuskulud[[#This Row],[Eelmine periood]],ABS((Tegevuskulud[[#This Row],[Praegune periood]]/Tegevuskulud[[#This Row],[Eelmine periood]])-1),IF(AND(Tegevuskulud[[#This Row],[Praegune periood]]<Tegevuskulud[[#This Row],[Eelmine periood]],Tegevuskulud[[#This Row],[Eelmine periood]]<0),-((Tegevuskulud[[#This Row],[Praegune periood]]/Tegevuskulud[[#This Row],[Eelmine periood]])-1),(Tegevuskulud[[#This Row],[Praegune periood]]/Tegevuskulud[[#This Row],[Eelmine periood]])-1))),\"-\")","v":{"v":0,"d":"0.00%"}},{"$f":"IFERROR(IF(Tegevuskulud[[#This Row],[Eelarve]]=Tegevuskulud[[#This Row],[Praegune periood]],0,IF(Tegevuskulud[[#This Row],[Praegune periood]]>Tegevuskulud[[#This Row],[Eelarve]],ABS((Tegevuskulud[[#This Row],[Praegune periood]]/Tegevuskulud[[#This Row],[Eelarve]])-1),IF(AND(Tegevuskulud[[#This Row],[Praegune periood]]<Tegevuskulud[[#This Row],[Eelarve]],Tegevuskulud[[#This Row],[Eelarve]]<0),-((Tegevuskulud[[#This Row],[Praegune periood]]/Tegevuskulud[[#This Row],[Eelarve]])-1),(Tegevuskulud[[#This Row],[Praegune periood]]/Tegevuskulud[[#This Row],[Eelarve]])-1))),\"-\")","v":{"v":0,"d":"0.00%"}}]
[null,"Uurimis- ja arendustegevus","Muud kulud (täpsustada)",{"$nulls":3},{"$f":"IFERROR(IF(Sales_Revenue=0,\"-\",Tegevuskulud[[#This Row],[Praegune periood]]/Sales_Revenue),\"-\")","v":"-"},{"$f":"IFERROR(IF(Tegevuskulud[[#This Row],[Eelmine periood]]=Tegevuskulud[[#This Row],[Praegune periood]],0,IF(Tegevuskulud[[#This Row],[Praegune periood]]>Tegevuskulud[[#This Row],[Eelmine periood]],ABS((Tegevuskulud[[#This Row],[Praegune periood]]/Tegevuskulud[[#This Row],[Eelmine periood]])-1),IF(AND(Tegevuskulud[[#This Row],[Praegune periood]]<Tegevuskulud[[#This Row],[Eelmine periood]],Tegevuskulud[[#This Row],[Eelmine periood]]<0),-((Tegevuskulud[[#This Row],[Praegune periood]]/Tegevuskulud[[#This Row],[Eelmine periood]])-1),(Tegevuskulud[[#This Row],[Praegune periood]]/Tegevuskulud[[#This Row],[Eelmine periood]])-1))),\"-\")","v":{"v":0,"d":"0.00%"}},{"$f":"IFERROR(IF(Tegevuskulud[[#This Row],[Eelarve]]=Tegevuskulud[[#This Row],[Praegune periood]],0,IF(Tegevuskulud[[#This Row],[Praegune periood]]>Tegevuskulud[[#This Row],[Eelarve]],ABS((Tegevuskulud[[#This Row],[Praegune periood]]/Tegevuskulud[[#This Row],[Eelarve]])-1),IF(AND(Tegevuskulud[[#This Row],[Praegune periood]]<Tegevuskulud[[#This Row],[Eelarve]],Tegevuskulud[[#This Row],[Eelarve]]<0),-((Tegevuskulud[[#This Row],[Praegune periood]]/Tegevuskulud[[#This Row],[Eelarve]])-1),(Tegevuskulud[[#This Row],[Praegune periood]]/Tegevuskulud[[#This Row],[Eelarve]])-1))),\"-\")","v":{"v":0,"d":"0.00%"}}]
[null,"Uurimis- ja arendustegevus","Muud kulud (täpsustada)",{"$nulls":3},{"$f":"IFERROR(IF(Sales_Revenue=0,\"-\",Tegevuskulud[[#This Row],[Praegune periood]]/Sales_Revenue),\"-\")","v":"-"},{"$f":"IFERROR(IF(Tegevuskulud[[#This Row],[Eelmine periood]]=Tegevuskulud[[#This Row],[Praegune periood]],0,IF(Tegevuskulud[[#This Row],[Praegune periood]]>Tegevuskulud[[#This Row],[Eelmine periood]],ABS((Tegevuskulud[[#This Row],[Praegune periood]]/Tegevuskulud[[#This Row],[Eelmine periood]])-1),IF(AND(Tegevuskulud[[#This Row],[Praegune periood]]<Tegevuskulud[[#This Row],[Eelmine periood]],Tegevuskulud[[#This Row],[Eelmine periood]]<0),-((Tegevuskulud[[#This Row],[Praegune periood]]/Tegevuskulud[[#This Row],[Eelmine periood]])-1),(Tegevuskulud[[#This Row],[Praegune periood]]/Tegevuskulud[[#This Row],[Eelmine periood]])-1))),\"-\")","v":{"v":0,"d":"0.00%"}},{"$f":"IFERROR(IF(Tegevuskulud[[#This Row],[Eelarve]]=Tegevuskulud[[#This Row],[Praegune periood]],0,IF(Tegevuskulud[[#This Row],[Praegune periood]]>Tegevuskulud[[#This Row],[Eelarve]],ABS((Tegevuskulud[[#This Row],[Praegune periood]]/Tegevuskulud[[#This Row],[Eelarve]])-1),IF(AND(Tegevuskulud[[#This Row],[Praegune periood]]<Tegevuskulud[[#This Row],[Eelarve]],Tegevuskulud[[#This Row],[Eelarve]]<0),-((Tegevuskulud[[#This Row],[Praegune periood]]/Tegevuskulud[[#This Row],[Eelarve]])-1),(Tegevuskulud[[#This Row],[Praegune periood]]/Tegevuskulud[[#This Row],[Eelarve]])-1))),\"-\")","v":{"v":0,"d":"0.00%"}}]
[null,"Üldine ja haldus","Töötasud",{"$nulls":3},{"$f":"IFERROR(IF(Sales_Revenue=0,\"-\",Tegevuskulud[[#This Row],[Praegune periood]]/Sales_Revenue),\"-\")","v":"-"},{"$f":"IFERROR(IF(Tegevuskulud[[#This Row],[Eelmine periood]]=Tegevuskulud[[#This Row],[Praegune periood]],0,IF(Tegevuskulud[[#This Row],[Praegune periood]]>Tegevuskulud[[#This Row],[Eelmine periood]],ABS((Tegevuskulud[[#This Row],[Praegune periood]]/Tegevuskulud[[#This Row],[Eelmine periood]])-1),IF(AND(Tegevuskulud[[#This Row],[Praegune periood]]<Tegevuskulud[[#This Row],[Eelmine periood]],Tegevuskulud[[#This Row],[Eelmine periood]]<0),-((Tegevuskulud[[#This Row],[Praegune periood]]/Tegevuskulud[[#This Row],[Eelmine periood]])-1),(Tegevuskulud[[#This Row],[Praegune periood]]/Tegevuskulud[[#This Row],[Eelmine periood]])-1))),\"-\")","v":{"v":0,"d":"0.00%"}},{"$f":"IFERROR(IF(Tegevuskulud[[#This Row],[Eelarve]]=Tegevuskulud[[#This Row],[Praegune periood]],0,IF(Tegevuskulud[[#This Row],[Praegune periood]]>Tegevuskulud[[#This Row],[Eelarve]],ABS((Tegevuskulud[[#This Row],[Praegune periood]]/Tegevuskulud[[#This Row],[Eelarve]])-1),IF(AND(Tegevuskulud[[#This Row],[Praegune periood]]<Tegevuskulud[[#This Row],[Eelarve]],Tegevuskulud[[#This Row],[Eelarve]]<0),-((Tegevuskulud[[#This Row],[Praegune periood]]/Tegevuskulud[[#This Row],[Eelarve]])-1),(Tegevuskulud[[#This Row],[Praegune periood]]/Tegevuskulud[[#This Row],[Eelarve]])-1))),\"-\")","v":{"v":0,"d":"0.00%"}}]
[null,"Üldine ja haldus","Välisteenused",{"$nulls":3},{"$f":"IFERROR(IF(Sales_Revenue=0,\"-\",Tegevuskulud[[#This Row],[Praegune periood]]/Sales_Revenue),\"-\")","v":"-"},{"$f":"IFERROR(IF(Tegevuskulud[[#This Row],[Eelmine periood]]=Tegevuskulud[[#This Row],[Praegune periood]],0,IF(Tegevuskulud[[#This Row],[Praegune periood]]>Tegevuskulud[[#This Row],[Eelmine periood]],ABS((Tegevuskulud[[#This Row],[Praegune periood]]/Tegevuskulud[[#This Row],[Eelmine periood]])-1),IF(AND(Tegevuskulud[[#This Row],[Praegune periood]]<Tegevuskulud[[#This Row],[Eelmine periood]],Tegevuskulud[[#This Row],[Eelmine periood]]<0),-((Tegevuskulud[[#This Row],[Praegune periood]]/Tegevuskulud[[#This Row],[Eelmine periood]])-1),(Tegevuskulud[[#This Row],[Praegune periood]]/Tegevuskulud[[#This Row],[Eelmine periood]])-1))),\"-\")","v":{"v":0,"d":"0.00%"}},{"$f":"IFERROR(IF(Tegevuskulud[[#This Row],[Eelarve]]=Tegevuskulud[[#This Row],[Praegune periood]],0,IF(Tegevuskulud[[#This Row],[Praegune periood]]>Tegevuskulud[[#This Row],[Eelarve]],ABS((Tegevuskulud[[#This Row],[Praegune periood]]/Tegevuskulud[[#This Row],[Eelarve]])-1),IF(AND(Tegevuskulud[[#This Row],[Praegune periood]]<Tegevuskulud[[#This Row],[Eelarve]],Tegevuskulud[[#This Row],[Eelarve]]<0),-((Tegevuskulud[[#This Row],[Praegune periood]]/Tegevuskulud[[#This Row],[Eelarve]])-1),(Tegevuskulud[[#This Row],[Praegune periood]]/Tegevuskulud[[#This Row],[Eelarve]])-1))),\"-\")","v":{"v":0,"d":"0.00%"}}]
[null,"Üldine ja haldus","Tarbed",{"$nulls":3},{"$f":"IFERROR(IF(Sales_Revenue=0,\"-\",Tegevuskulud[[#This Row],[Praegune periood]]/Sales_Revenue),\"-\")","v":"-"},{"$f":"IFERROR(IF(Tegevuskulud[[#This Row],[Eelmine periood]]=Tegevuskulud[[#This Row],[Praegune periood]],0,IF(Tegevuskulud[[#This Row],[Praegune periood]]>Tegevuskulud[[#This Row],[Eelmine periood]],ABS((Tegevuskulud[[#This Row],[Praegune periood]]/Tegevuskulud[[#This Row],[Eelmine periood]])-1),IF(AND(Tegevuskulud[[#This Row],[Praegune periood]]<Tegevuskulud[[#This Row],[Eelmine periood]],Tegevuskulud[[#This Row],[Eelmine periood]]<0),-((Tegevuskulud[[#This Row],[Praegune periood]]/Tegevuskulud[[#This Row],[Eelmine periood]])-1),(Tegevuskulud[[#This Row],[Praegune periood]]/Tegevuskulud[[#This Row],[Eelmine periood]])-1))),\"-\")","v":{"v":0,"d":"0.00%"}},{"$f":"IFERROR(IF(Tegevuskulud[[#This Row],[Eelarve]]=Tegevuskulud[[#This Row],[Praegune periood]],0,IF(Tegevuskulud[[#This Row],[Praegune periood]]>Tegevuskulud[[#This Row],[Eelarve]],ABS((Tegevuskulud[[#This Row],[Praegune periood]]/Tegevuskulud[[#This Row],[Eelarve]])-1),IF(AND(Tegevuskulud[[#This Row],[Praegune periood]]<Tegevuskulud[[#This Row],[Eelarve]],Tegevuskulud[[#This Row],[Eelarve]]<0),-((Tegevuskulud[[#This Row],[Praegune periood]]/Tegevuskulud[[#This Row],[Eelarve]])-1),(Tegevuskulud[[#This Row],[Praegune periood]]/Tegevuskulud[[#This Row],[Eelarve]])-1))),\"-\")","v":{"v":0,"d":"0.00%"}}]
[null,"Üldine ja haldus","Toitlustus ja meelelahutus",{"$nulls":3},{"$f":"IFERROR(IF(Sales_Revenue=0,\"-\",Tegevuskulud[[#This Row],[Praegune periood]]/Sales_Revenue),\"-\")","v":"-"},{"$f":"IFERROR(IF(Tegevuskulud[[#This Row],[Eelmine periood]]=Tegevuskulud[[#This Row],[Praegune periood]],0,IF(Tegevuskulud[[#This Row],[Praegune periood]]>Tegevuskulud[[#This Row],[Eelmine periood]],ABS((Tegevuskulud[[#This Row],[Praegune periood]]/Tegevuskulud[[#This Row],[Eelmine periood]])-1),IF(AND(Tegevuskulud[[#This Row],[Praegune periood]]<Tegevuskulud[[#This Row],[Eelmine periood]],Tegevuskulud[[#This Row],[Eelmine periood]]<0),-((Tegevuskulud[[#This Row],[Praegune periood]]/Tegevuskulud[[#This Row],[Eelmine periood]])-1),(Tegevuskulud[[#This Row],[Praegune periood]]/Tegevuskulud[[#This Row],[Eelmine periood]])-1))),\"-\")","v":{"v":0,"d":"0.00%"}},{"$f":"IFERROR(IF(Tegevuskulud[[#This Row],[Eelarve]]=Tegevuskulud[[#This Row],[Praegune periood]],0,IF(Tegevuskulud[[#This Row],[Praegune periood]]>Tegevuskulud[[#This Row],[Eelarve]],ABS((Tegevuskulud[[#This Row],[Praegune periood]]/Tegevuskulud[[#This Row],[Eelarve]])-1),IF(AND(Tegevuskulud[[#This Row],[Praegune periood]]<Tegevuskulud[[#This Row],[Eelarve]],Tegevuskulud[[#This Row],[Eelarve]]<0),-((Tegevuskulud[[#This Row],[Praegune periood]]/Tegevuskulud[[#This Row],[Eelarve]])-1),(Tegevuskulud[[#This Row],[Praegune periood]]/Tegevuskulud[[#This Row],[Eelarve]])-1))),\"-\")","v":{"v":0,"d":"0.00%"}}]
[null,"Üldine ja haldus","Üür",{"$nulls":3},{"$f":"IFERROR(IF(Sales_Revenue=0,\"-\",Tegevuskulud[[#This Row],[Praegune periood]]/Sales_Revenue),\"-\")","v":"-"},{"$f":"IFERROR(IF(Tegevuskulud[[#This Row],[Eelmine periood]]=Tegevuskulud[[#This Row],[Praegune periood]],0,IF(Tegevuskulud[[#This Row],[Praegune periood]]>Tegevuskulud[[#This Row],[Eelmine periood]],ABS((Tegevuskulud[[#This Row],[Praegune periood]]/Tegevuskulud[[#This Row],[Eelmine periood]])-1),IF(AND(Tegevuskulud[[#This Row],[Praegune periood]]<Tegevuskulud[[#This Row],[Eelmine periood]],Tegevuskulud[[#This Row],[Eelmine periood]]<0),-((Tegevuskulud[[#This Row],[Praegune periood]]/Tegevuskulud[[#This Row],[Eelmine periood]])-1),(Tegevuskulud[[#This Row],[Praegune periood]]/Tegevuskulud[[#This Row],[Eelmine periood]])-1))),\"-\")","v":{"v":0,"d":"0.00%"}},{"$f":"IFERROR(IF(Tegevuskulud[[#This Row],[Eelarve]]=Tegevuskulud[[#This Row],[Praegune periood]],0,IF(Tegevuskulud[[#This Row],[Praegune periood]]>Tegevuskulud[[#This Row],[Eelarve]],ABS((Tegevuskulud[[#This Row],[Praegune periood]]/Tegevuskulud[[#This Row],[Eelarve]])-1),IF(AND(Tegevuskulud[[#This Row],[Praegune periood]]<Tegevuskulud[[#This Row],[Eelarve]],Tegevuskulud[[#This Row],[Eelarve]]<0),-((Tegevuskulud[[#This Row],[Praegune periood]]/Tegevuskulud[[#This Row],[Eelarve]])-1),(Tegevuskulud[[#This Row],[Praegune periood]]/Tegevuskulud[[#This Row],[Eelarve]])-1))),\"-\")","v":{"v":0,"d":"0.00%"}}]
[null,"Üldine ja haldus","Telefon",{"$nulls":3},{"$f":"IFERROR(IF(Sales_Revenue=0,\"-\",Tegevuskulud[[#This Row],[Praegune periood]]/Sales_Revenue),\"-\")","v":"-"},{"$f":"IFERROR(IF(Tegevuskulud[[#This Row],[Eelmine periood]]=Tegevuskulud[[#This Row],[Praegune periood]],0,IF(Tegevuskulud[[#This Row],[Praegune periood]]>Tegevuskulud[[#This Row],[Eelmine periood]],ABS((Tegevuskulud[[#This Row],[Praegune periood]]/Tegevuskulud[[#This Row],[Eelmine periood]])-1),IF(AND(Tegevuskulud[[#This Row],[Praegune periood]]<Tegevuskulud[[#This Row],[Eelmine periood]],Tegevuskulud[[#This Row],[Eelmine periood]]<0),-((Tegevuskulud[[#This Row],[Praegune periood]]/Tegevuskulud[[#This Row],[Eelmine periood]])-1),(Tegevuskulud[[#This Row],[Praegune periood]]/Tegevuskulud[[#This Row],[Eelmine periood]])-1))),\"-\")","v":{"v":0,"d":"0.00%"}},{"$f":"IFERROR(IF(Tegevuskulud[[#This Row],[Eelarve]]=Tegevuskulud[[#This Row],[Praegune periood]],0,IF(Tegevuskulud[[#This Row],[Praegune periood]]>Tegevuskulud[[#This Row],[Eelarve]],ABS((Tegevuskulud[[#This Row],[Praegune periood]]/Tegevuskulud[[#This Row],[Eelarve]])-1),IF(AND(Tegevuskulud[[#This Row],[Praegune periood]]<Tegevuskulud[[#This Row],[Eelarve]],Tegevuskulud[[#This Row],[Eelarve]]<0),-((Tegevuskulud[[#This Row],[Praegune periood]]/Tegevuskulud[[#This Row],[Eelarve]])-1),(Tegevuskulud[[#This Row],[Praegune periood]]/Tegevuskulud[[#This Row],[Eelarve]])-1))),\"-\")","v":{"v":0,"d":"0.00%"}}]
[null,"Üldine ja haldus","Kommunaalid",{"$nulls":3},{"$f":"IFERROR(IF(Sales_Revenue=0,\"-\",Tegevuskulud[[#This Row],[Praegune periood]]/Sales_Revenue),\"-\")","v":"-"},{"$f":"IFERROR(IF(Tegevuskulud[[#This Row],[Eelmine periood]]=Tegevuskulud[[#This Row],[Praegune periood]],0,IF(Tegevuskulud[[#This Row],[Praegune periood]]>Tegevuskulud[[#This Row],[Eelmine periood]],ABS((Tegevuskulud[[#This Row],[Praegune periood]]/Tegevuskulud[[#This Row],[Eelmine periood]])-1),IF(AND(Tegevuskulud[[#This Row],[Praegune periood]]<Tegevuskulud[[#This Row],[Eelmine periood]],Tegevuskulud[[#This Row],[Eelmine periood]]<0),-((Tegevuskulud[[#This Row],[Praegune periood]]/Tegevuskulud[[#This Row],[Eelmine periood]])-1),(Tegevuskulud[[#This Row],[Praegune periood]]/Tegevuskulud[[#This Row],[Eelmine periood]])-1))),\"-\")","v":{"v":0,"d":"0.00%"}},{"$f":"IFERROR(IF(Tegevuskulud[[#This Row],[Eelarve]]=Tegevuskulud[[#This Row],[Praegune periood]],0,IF(Tegevuskulud[[#This Row],[Praegune periood]]>Tegevuskulud[[#This Row],[Eelarve]],ABS((Tegevuskulud[[#This Row],[Praegune periood]]/Tegevuskulud[[#This Row],[Eelarve]])-1),IF(AND(Tegevuskulud[[#This Row],[Praegune periood]]<Tegevuskulud[[#This Row],[Eelarve]],Tegevuskulud[[#This Row],[Eelarve]]<0),-((Tegevuskulud[[#This Row],[Praegune periood]]/Tegevuskulud[[#This Row],[Eelarve]])-1),(Tegevuskulud[[#This Row],[Praegune periood]]/Tegevuskulud[[#This Row],[Eelarve]])-1))),\"-\")","v":{"v":0,"d":"0.00%"}}]
[null,"Üldine ja haldus","Amortisatsioon",{"$nulls":3},{"$f":"IFERROR(IF(Sales_Revenue=0,\"-\",Tegevuskulud[[#This Row],[Praegune periood]]/Sales_Revenue),\"-\")","v":"-"},{"$f":"IFERROR(IF(Tegevuskulud[[#This Row],[Eelmine periood]]=Tegevuskulud[[#This Row],[Praegune periood]],0,IF(Tegevuskulud[[#This Row],[Praegune periood]]>Tegevuskulud[[#This Row],[Eelmine periood]],ABS((Tegevuskulud[[#This Row],[Praegune periood]]/Tegevuskulud[[#This Row],[Eelmine periood]])-1),IF(AND(Tegevuskulud[[#This Row],[Praegune periood]]<Tegevuskulud[[#This Row],[Eelmine periood]],Tegevuskulud[[#This Row],[Eelmine periood]]<0),-((Tegevuskulud[[#This Row],[Praegune periood]]/Tegevuskulud[[#This Row],[Eelmine periood]])-1),(Tegevuskulud[[#This Row],[Praegune periood]]/Tegevuskulud[[#This Row],[Eelmine periood]])-1))),\"-\")","v":{"v":0,"d":"0.00%"}},{"$f":"IFERROR(IF(Tegevuskulud[[#This Row],[Eelarve]]=Tegevuskulud[[#This Row],[Praegune periood]],0,IF(Tegevuskulud[[#This Row],[Praegune periood]]>Tegevuskulud[[#This Row],[Eelarve]],ABS((Tegevuskulud[[#This Row],[Praegune periood]]/Tegevuskulud[[#This Row],[Eelarve]])-1),IF(AND(Tegevuskulud[[#This Row],[Praegune periood]]<Tegevuskulud[[#This Row],[Eelarve]],Tegevuskulud[[#This Row],[Eelarve]]<0),-((Tegevuskulud[[#This Row],[Praegune periood]]/Tegevuskulud[[#This Row],[Eelarve]])-1),(Tegevuskulud[[#This Row],[Praegune periood]]/Tegevuskulud[[#This Row],[Eelarve]])-1))),\"-\")","v":{"v":0,"d":"0.00%"}}]
[null,"Üldine ja haldus","Kindlustus",{"$nulls":3},{"$f":"IFERROR(IF(Sales_Revenue=0,\"-\",Tegevuskulud[[#This Row],[Praegune periood]]/Sales_Revenue),\"-\")","v":"-"},{"$f":"IFERROR(IF(Tegevuskulud[[#This Row],[Eelmine periood]]=Tegevuskulud[[#This Row],[Praegune periood]],0,IF(Tegevuskulud[[#This Row],[Praegune periood]]>Tegevuskulud[[#This Row],[Eelmine periood]],ABS((Tegevuskulud[[#This Row],[Praegune periood]]/Tegevuskulud[[#This Row],[Eelmine periood]])-1),IF(AND(Tegevuskulud[[#This Row],[Praegune periood]]<Tegevuskulud[[#This Row],[Eelmine periood]],Tegevuskulud[[#This Row],[Eelmine periood]]<0),-((Tegevuskulud[[#This Row],[Praegune periood]]/Tegevuskulud[[#This Row],[Eelmine periood]])-1),(Tegevuskulud[[#This Row],[Praegune periood]]/Tegevuskulud[[#This Row],[Eelmine periood]])-1))),\"-\")","v":{"v":0,"d":"0.00%"}},{"$f":"IFERROR(IF(Tegevuskulud[[#This Row],[Eelarve]]=Tegevuskulud[[#This Row],[Praegune periood]],0,IF(Tegevuskulud[[#This Row],[Praegune periood]]>Tegevuskulud[[#This Row],[Eelarve]],ABS((Tegevuskulud[[#This Row],[Praegune periood]]/Tegevuskulud[[#This Row],[Eelarve]])-1),IF(AND(Tegevuskulud[[#This Row],[Praegune periood]]<Tegevuskulud[[#This Row],[Eelarve]],Tegevuskulud[[#This Row],[Eelarve]]<0),-((Tegevuskulud[[#This Row],[Praegune periood]]/Tegevuskulud[[#This Row],[Eelarve]])-1),(Tegevuskulud[[#This Row],[Praegune periood]]/Tegevuskulud[[#This Row],[Eelarve]])-1))),\"-\")","v":{"v":0,"d":"0.00%"}}]
[null,"Üldine ja haldus","Remont ja hooldus",{"$nulls":3},{"$f":"IFERROR(IF(Sales_Revenue=0,\"-\",Tegevuskulud[[#This Row],[Praegune periood]]/Sales_Revenue),\"-\")","v":"-"},{"$f":"IFERROR(IF(Tegevuskulud[[#This Row],[Eelmine periood]]=Tegevuskulud[[#This Row],[Praegune periood]],0,IF(Tegevuskulud[[#This Row],[Praegune periood]]>Tegevuskulud[[#This Row],[Eelmine periood]],ABS((Tegevuskulud[[#This Row],[Praegune periood]]/Tegevuskulud[[#This Row],[Eelmine periood]])-1),IF(AND(Tegevuskulud[[#This Row],[Praegune periood]]<Tegevuskulud[[#This Row],[Eelmine periood]],Tegevuskulud[[#This Row],[Eelmine periood]]<0),-((Tegevuskulud[[#This Row],[Praegune periood]]/Tegevuskulud[[#This Row],[Eelmine periood]])-1),(Tegevuskulud[[#This Row],[Praegune periood]]/Tegevuskulud[[#This Row],[Eelmine periood]])-1))),\"-\")","v":{"v":0,"d":"0.00%"}},{"$f":"IFERROR(IF(Tegevuskulud[[#This Row],[Eelarve]]=Tegevuskulud[[#This Row],[Praegune periood]],0,IF(Tegevuskulud[[#This Row],[Praegune periood]]>Tegevuskulud[[#This Row],[Eelarve]],ABS((Tegevuskulud[[#This Row],[Praegune periood]]/Tegevuskulud[[#This Row],[Eelarve]])-1),IF(AND(Tegevuskulud[[#This Row],[Praegune periood]]<Tegevuskulud[[#This Row],[Eelarve]],Tegevuskulud[[#This Row],[Eelarve]]<0),-((Tegevuskulud[[#This Row],[Praegune periood]]/Tegevuskulud[[#This Row],[Eelarve]])-1),(Tegevuskulud[[#This Row],[Praegune periood]]/Tegevuskulud[[#This Row],[Eelarve]])-1))),\"-\")","v":{"v":0,"d":"0.00%"}}]
[null,"Üldine ja haldus","Muud kulud (täpsustada)",{"$nulls":3},{"$f":"IFERROR(IF(Sales_Revenue=0,\"-\",Tegevuskulud[[#This Row],[Praegune periood]]/Sales_Revenue),\"-\")","v":"-"},{"$f":"IFERROR(IF(Tegevuskulud[[#This Row],[Eelmine periood]]=Tegevuskulud[[#This Row],[Praegune periood]],0,IF(Tegevuskulud[[#This Row],[Praegune periood]]>Tegevuskulud[[#This Row],[Eelmine periood]],ABS((Tegevuskulud[[#This Row],[Praegune periood]]/Tegevuskulud[[#This Row],[Eelmine periood]])-1),IF(AND(Tegevuskulud[[#This Row],[Praegune periood]]<Tegevuskulud[[#This Row],[Eelmine periood]],Tegevuskulud[[#This Row],[Eelmine periood]]<0),-((Tegevuskulud[[#This Row],[Praegune periood]]/Tegevuskulud[[#This Row],[Eelmine periood]])-1),(Tegevuskulud[[#This Row],[Praegune periood]]/Tegevuskulud[[#This Row],[Eelmine periood]])-1))),\"-\")","v":{"v":0,"d":"0.00%"}},{"$f":"IFERROR(IF(Tegevuskulud[[#This Row],[Eelarve]]=Tegevuskulud[[#This Row],[Praegune periood]],0,IF(Tegevuskulud[[#This Row],[Praegune periood]]>Tegevuskulud[[#This Row],[Eelarve]],ABS((Tegevuskulud[[#This Row],[Praegune periood]]/Tegevuskulud[[#This Row],[Eelarve]])-1),IF(AND(Tegevuskulud[[#This Row],[Praegune periood]]<Tegevuskulud[[#This Row],[Eelarve]],Tegevuskulud[[#This Row],[Eelarve]]<0),-((Tegevuskulud[[#This Row],[Praegune periood]]/Tegevuskulud[[#This Row],[Eelarve]])-1),(Tegevuskulud[[#This Row],[Praegune periood]]/Tegevuskulud[[#This Row],[Eelarve]])-1))),\"-\")","v":{"v":0,"d":"0.00%"}}]
[null,"Üldine ja haldus","Muud kulud (täpsustada)",{"$nulls":3},{"$f":"IFERROR(IF(Sales_Revenue=0,\"-\",Tegevuskulud[[#This Row],[Praegune periood]]/Sales_Revenue),\"-\")","v":"-"},{"$f":"IFERROR(IF(Tegevuskulud[[#This Row],[Eelmine periood]]=Tegevuskulud[[#This Row],[Praegune periood]],0,IF(Tegevuskulud[[#This Row],[Praegune periood]]>Tegevuskulud[[#This Row],[Eelmine periood]],ABS((Tegevuskulud[[#This Row],[Praegune periood]]/Tegevuskulud[[#This Row],[Eelmine periood]])-1),IF(AND(Tegevuskulud[[#This Row],[Praegune periood]]<Tegevuskulud[[#This Row],[Eelmine periood]],Tegevuskulud[[#This Row],[Eelmine periood]]<0),-((Tegevuskulud[[#This Row],[Praegune periood]]/Tegevuskulud[[#This Row],[Eelmine periood]])-1),(Tegevuskulud[[#This Row],[Praegune periood]]/Tegevuskulud[[#This Row],[Eelmine periood]])-1))),\"-\")","v":{"v":0,"d":"0.00%"}},{"$f":"IFERROR(IF(Tegevuskulud[[#This Row],[Eelarve]]=Tegevuskulud[[#This Row],[Praegune periood]],0,IF(Tegevuskulud[[#This Row],[Praegune periood]]>Tegevuskulud[[#This Row],[Eelarve]],ABS((Tegevuskulud[[#This Row],[Praegune periood]]/Tegevuskulud[[#This Row],[Eelarve]])-1),IF(AND(Tegevuskulud[[#This Row],[Praegune periood]]<Tegevuskulud[[#This Row],[Eelarve]],Tegevuskulud[[#This Row],[Eelarve]]<0),-((Tegevuskulud[[#This Row],[Praegune periood]]/Tegevuskulud[[#This Row],[Eelarve]])-1),(Tegevuskulud[[#This Row],[Praegune periood]]/Tegevuskulud[[#This Row],[Eelarve]])-1))),\"-\")","v":{"v":0,"d":"0.00%"}}]
[null,"Tegevuskulud kokku",null,{"$f":"SUBTOTAL(109,Tegevuskulud[Eelmine periood])","v":0},{"$f":"SUBTOTAL(109,Tegevuskulud[Eelarve])","v":0},{"$f":"SUBTOTAL(109,Tegevuskulud[Praegune periood])","v":0},{"$f":"SUBTOTAL(109,Tegevuskulud[Praegune periood müügiprotsendina])","v":{"v":0,"d":"0.00%"}},{"$f":"SUBTOTAL(109,Tegevuskulud[Muutuse protsent võrreldes eelmise perioodiga])","v":{"v":0,"d":"0.00%"}},{"$f":"SUBTOTAL(109,Tegevuskulud[Eelarve erinevuse protsent])","v":{"v":0,"d":"0.00%"}}]

{"sheet":"Maksud","index":4,"n_rows":10,"n_cols":9,"rows_kept":10,"merged":[[0,7,2,8]]}
[null,{"$f":"Töövihiku_pealkiri","v":"Kasumiaruanne"}]
[null,{"$f":"Company_Name","v":"Ettevõtte nimi"},"Tuhandelistena"]
[null,"Maksud",{"$f":"IFERROR(Maksud[[#Totals],[Praegune periood]],\"-\")","v":0}]
[null,"Liik","Kirjeldus","Eelmine periood","Eelarve","Praegune periood","Praegune periood müügiprotsendina","Muutuse protsent võrreldes eelmise perioodiga","Eelarve erinevuse protsent"]
[null,"Maksud","Tulumaks",{"$nulls":3},{"$f":"IFERROR(IF(Sales_Revenue=0,\"-\",Maksud[[#This Row],[Praegune periood]]/Sales_Revenue),\"-\")","v":"-"},{"$f":"IFERROR(IF(Maksud[[#This Row],[Eelmine periood]]=Maksud[[#This Row],[Praegune periood]],0,IF(Maksud[[#This Row],[Praegune periood]]>Maksud[[#This Row],[Eelmine periood]],ABS((Maksud[[#This Row],[Praegune periood]]/Maksud[[#This Row],[Eelmine periood]])-1),IF(AND(Maksud[[#This Row],[Praegune periood]]<Maksud[[#This Row],[Eelmine periood]],Maksud[[#This Row],[Eelmine periood]]<0),-((Maksud[[#This Row],[Praegune periood]]/Maksud[[#This Row],[Eelmine periood]])-1),(Maksud[[#This Row],[Praegune periood]]/Maksud[[#This Row],[Eelmine periood]])-1))),\"-\")","v":{"v":0,"d":"0.00%"}},{"$f":"IFERROR(IF(Maksud[[#This Row],[Eelarve]]=Maksud[[#This Row],[Praegune periood]],0,IF(Maksud[[#This Row],[Praegune periood]]>Maksud[[#This Row],[Eelarve]],ABS((Maksud[[#This Row],[Praegune periood]]/Maksud[[#This Row],[Eelarve]])-1),IF(AND(Maksud[[#This Row],[Praegune periood]]<Maksud[[#This Row],[Eelarve]],Maksud[[#This Row],[Eelarve]]<0),-((Maksud[[#This Row],[Praegune periood]]/Maksud[[#This Row],[Eelarve]])-1),(Maksud[[#This Row],[Praegune periood]]/Maksud[[#This Row],[Eelarve]])-1))),\"-\")","v":{"v":0,"d":"0.00%"}}]
[null,"Maksud","Palgamaksud",{"$nulls":3},{"$f":"IFERROR(IF(Sales_Revenue=0,\"-\",Maksud[[#This Row],[Praegune periood]]/Sales_Revenue),\"-\")","v":"-"},{"$f":"IFERROR(IF(Maksud[[#This Row],[Eelmine periood]]=Maksud[[#This Row],[Praegune periood]],0,IF(Maksud[[#This Row],[Praegune periood]]>Maksud[[#This Row],[Eelmine periood]],ABS((Maksud[[#This Row],[Praegune periood]]/Maksud[[#This Row],[Eelmine periood]])-1),IF(AND(Maksud[[#This Row],[Praegune periood]]<Maksud[[#This Row],[Eelmine periood]],Maksud[[#This Row],[Eelmine periood]]<0),-((Maksud[[#This Row],[Praegune periood]]/Maksud[[#This Row],[Eelmine periood]])-1),(Maksud[[#This Row],[Praegune periood]]/Maksud[[#This Row],[Eelmine periood]])-1))),\"-\")","v":{"v":0,"d":"0.00%"}},{"$f":"IFERROR(IF(Maksud[[#This Row],[Eelarve]]=Maksud[[#This Row],[Praegune periood]],0,IF(Maksud[[#This Row],[Praegune periood]]>Maksud[[#This Row],[Eelarve]],ABS((Maksud[[#This Row],[Praegune periood]]/Maksud[[#This Row],[Eelarve]])-1),IF(AND(Maksud[[#This Row],[Praegune periood]]<Maksud[[#This Row],[Eelarve]],Maksud[[#This Row],[Eelarve]]<0),-((Maksud[[#This Row],[Praegune periood]]/Maksud[[#This Row],[Eelarve]])-1),(Maksud[[#This Row],[Praegune periood]]/Maksud[[#This Row],[Eelarve]])-1))),\"-\")","v":{"v":0,"d":"0.00%"}}]
[null,"Maksud","Kinnisvaramaksud",{"$nulls":3},{"$f":"IFERROR(IF(Sales_Revenue=0,\"-\",Maksud[[#This Row],[Praegune periood]]/Sales_Revenue),\"-\")","v":"-"},{"$f":"IFERROR(IF(Maksud[[#This Row],[Eelmine periood]]=Maksud[[#This Row],[Praegune periood]],0,IF(Maksud[[#This Row],[Praegune periood]]>Maksud[[#This Row],[Eelmine periood]],ABS((Maksud[[#This Row],[Praegune periood]]/Maksud[[#This Row],[Eelmine periood]])-1),IF(AND(Maksud[[#This Row],[Praegune periood]]<Maksud[[#This Row],[Eelmine periood]],Maksud[[#This Row],[Eelmine periood]]<0),-((Maksud[[#This Row],[Praegune periood]]/Maksud[[#This Row],[Eelmine periood]])-1),(Maksud[[#This Row],[Praegune periood]]/Maksud[[#This Row],[Eelmine periood]])-1))),\"-\")","v":{"v":0,"d":"0.00%"}},{"$f":"IFERROR(IF(Maksud[[#This Row],[Eelarve]]=Maksud[[#This Row],[Praegune periood]],0,IF(Maksud[[#This Row],[Praegune periood]]>Maksud[[#This Row],[Eelarve]],ABS((Maksud[[#This Row],[Praegune periood]]/Maksud[[#This Row],[Eelarve]])-1),IF(AND(Maksud[[#This Row],[Praegune periood]]<Maksud[[#This Row],[Eelarve]],Maksud[[#This Row],[Eelarve]]<0),-((Maksud[[#This Row],[Praegune periood]]/Maksud[[#This Row],[Eelarve]])-1),(Maksud[[#This Row],[Praegune periood]]/Maksud[[#This Row],[Eelarve]])-1))),\"-\")","v":{"v":0,"d":"0.00%"}}]
[null,"Maksud","Muud maksud (täpsustada)",{"$nulls":3},{"$f":"IFERROR(IF(Sales_Revenue=0,\"-\",Maksud[[#This Row],[Praegune periood]]/Sales_Revenue),\"-\")","v":"-"},{"$f":"IFERROR(IF(Maksud[[#This Row],[Eelmine periood]]=Maksud[[#This Row],[Praegune periood]],0,IF(Maksud[[#This Row],[Praegune periood]]>Maksud[[#This Row],[Eelmine periood]],ABS((Maksud[[#This Row],[Praegune periood]]/Maksud[[#This Row],[Eelmine periood]])-1),IF(AND(Maksud[[#This Row],[Praegune periood]]<Maksud[[#This Row],[Eelmine periood]],Maksud[[#This Row],[Eelmine periood]]<0),-((Maksud[[#This Row],[Praegune periood]]/Maksud[[#This Row],[Eelmine periood]])-1),(Maksud[[#This Row],[Praegune periood]]/Maksud[[#This Row],[Eelmine periood]])-1))),\"-\")","v":{"v":0,"d":"0.00%"}},{"$f":"IFERROR(IF(Maksud[[#This Row],[Eelarve]]=Maksud[[#This Row],[Praegune periood]],0,IF(Maksud[[#This Row],[Praegune periood]]>Maksud[[#This Row],[Eelarve]],ABS((Maksud[[#This Row],[Praegune periood]]/Maksud[[#This Row],[Eelarve]])-1),IF(AND(Maksud[[#This Row],[Praegune periood]]<Maksud[[#This Row],[Eelarve]],Maksud[[#This Row],[Eelarve]]<0),-((Maksud[[#This Row],[Praegune periood]]/Maksud[[#This Row],[Eelarve]])-1),(Maksud[[#This Row],[Praegune periood]]/Maksud[[#This Row],[Eelarve]])-1))),\"-\")","v":{"v":0,"d":"0.00%"}}]
[null,"Maksud","Muud maksud (täpsustada)",{"$nulls":3},{"$f":"IFERROR(IF(Sales_Revenue=0,\"-\",Maksud[[#This Row],[Praegune periood]]/Sales_Revenue),\"-\")","v":"-"},{"$f":"IFERROR(IF(Maksud[[#This Row],[Eelmine periood]]=Maksud[[#This Row],[Praegune periood]],0,IF(Maksud[[#This Row],[Praegune periood]]>Maksud[[#This Row],[Eelmine periood]],ABS((Maksud[[#This Row],[Praegune periood]]/Maksud[[#This Row],[Eelmine periood]])-1),IF(AND(Maksud[[#This Row],[Praegune periood]]<Maksud[[#This Row],[Eelmine periood]],Maksud[[#This Row],[Eelmine periood]]<0),-((Maksud[[#This Row],[Praegune periood]]/Maksud[[#This Row],[Eelmine periood]])-1),(Maksud[[#This Row],[Praegune periood]]/Maksud[[#This Row],[Eelmine periood]])-1))),\"-\")","v":{"v":0,"d":"0.00%"}},{"$f":"IFERROR(IF(Maksud[[#This Row],[Eelarve]]=Maksud[[#This Row],[Praegune periood]],0,IF(Maksud[[#This Row],[Praegune periood]]>Maksud[[#This Row],[Eelarve]],ABS((Maksud[[#This Row],[Praegune periood]]/Maksud[[#This Row],[Eelarve]])-1),IF(AND(Maksud[[#This Row],[Praegune periood]]<Maksud[[#This Row],[Eelarve]],Maksud[[#This Row],[Eelarve]]<0),-((Maksud[[#This Row],[Praegune periood]]/Maksud[[#This Row],[Eelarve]])-1),(Maksud[[#This Row],[Praegune periood]]/Maksud[[#This Row],[Eelarve]])-1))),\"-\")","v":{"v":0,"d":"0.00%"}}]
[null,"Maksud kokku",null,{"$f":"SUBTOTAL(109,Maksud[Eelmine periood])","v":0},{"$f":"SUBTOTAL(109,Maksud[Eelarve])","v":0},{"$f":"SUBTOTAL(109,Maksud[Praegune periood])","v":0},{"$f":"IFERROR(SUBTOTAL(109,Maksud[Praegune periood müügiprotsendina]),\"-\")","v":{"v":0,"d":"0.00%"}},{"$f":"SUBTOTAL(109,Maksud[Muutuse protsent võrreldes eelmise perioodiga])","v":{"v":0,"d":"0.00%"}},{"$f":"SUBTOTAL(109,Maksud[Eelarve erinevuse protsent])","v":{"v":0,"d":"0.00%"}}]

{"sheet":"Kategooriad","index":5,"n_rows":8,"n_cols":2,"rows_kept":8}
[null,"Kategooriad"]
[null,"Müügitulu"]
[null,"Müügikulu"]
[null,"Sissetulekud"]
[null,"Müük ja turundus"]
[null,"Uurimis- ja arendustegevus"]
[null,"Üldine ja haldus"]
[null,"Maksud"]